Cogmind - Beta 13 @@@ ROGUE MODE // 2024.07.05 @ 23:05:13 Player: Electroneer Result: Destroyed by G-47 Trooper with Particle Gun Performance ------------- Evolutions (0) 0 Regions Visited (2) 400 Robots Destroyed (18) 90 Value Destroyed (447) 447 Prototype IDs (2) 40 Alien Tech Used (0) 0 Bonus (0) 0 TOTAL SCORE: 977 Bonus ------- None Cogmind --------- Core Integrity 0/250 Matter 259/300 Energy 65/125 System Corruption 3% Temperature Hot (249) Movement Core (600) Ox11 Location -10/Mines Parts ------- > --- POWER (1) -------- Light Ion Engine > --- PROPULSION (2) --- (None) > --- UTILITY (2) ------ Large Storage Unit Light Armor Plating > --- WEAPON (2) ------- Particle Cannon Particle Cannon > --- INVENTORY (15) --- Light Ion Engine Heat Sink Heat Sink Signal Interpreter ECM Suite Particle Cannon Peak State ------------ > --- POWER ------------ Light Ion Engine > --- PROPULSION ------- Aluminum Leg Aluminum Leg > --- UTILITY ---------- Heat Sink Large Storage Unit > --- WEAPON ----------- Particle Cannon Particle Cannon > --- INVENTORY -------- Light Ion Engine Aluminum Leg Heat Sink Signal Interpreter ECM Suite Light Armor Plating Particle Cannon Particle Cannon [Rating: 10] Favorites ----------- Power Ion Engine Engine Ion Engine Propulsion Wheel Leg Aluminum Leg Wheel Wheel Utility Light Armor Plating Device Heat Sink Storage Large Storage Unit Protection Light Armor Plating Weapon Assault Rifle Energy Gun Small Laser Energy Cannon Particle Cannon Ballistic Gun Assault Rifle Build | -11 -10 -10 ------- Run | Yrd Mat Min Slots Evolved . | . . . Power . | . . . Propulsion . | . . . Utility . | . . . Weapon . | . . . Parts Attached 30 | 7 21 2 Power 9 | 2 7 . Engine 9 | 2 7 . Core . | . . . Reactor . | . . . Propulsion 5 | 2 3 . Treads . | . . . Leg 3 | . 3 . Wheel 2 | 2 . . Hover . | . . . Flight . | . . . Utility 7 | . 6 1 Device 3 | . 3 . Storage 2 | . 2 . Processor . | . . . Hackware . | . . . Protection 2 | . 1 1 Artifact . | . . . Weapon 9 | 3 5 1 Energy Gun 2 | 1 1 . Energy Cannon 5 | . 4 1 Ballistic Gun 2 | 2 . . Ballistic Cannon . | . . . Launcher . | . . . Special Weapon . | . . . Impact Weapon . | . . . Slashing Weapon . | . . . Piercing Weapon . | . . . Special Melee Weapon . | . . . Unidentified Prototypes . | . . . Parts Lost 4 | . 1 3 Power . | . . . Propulsion 3 | . 1 2 Utility . | . . . Weapon 1 | . . 1 Highest Loss Streak 3 | . 1 3 To Critical Strikes . | . . . Average Slot Usage (%) 98 | . 98 100 Engine 13 | . 13 14 Leg 22 | . 22 28 Wheel 4 | . 5 . Device 10 | . 10 14 Storage 8 | . 8 14 Protection 8 | . 8 . Energy Gun 2 | . 2 . Energy Cannon 22 | . 21 28 Ballistic Gun 2 | . 2 . Naked Turns . | . . . Heaviest Build 34 | 8 34 32 Greatest Support 20 | 20 20 20 Greatest Overweight (x) 1 | . 1 1 Average Overweight (x) . | . . 1 Largest Inventory Capacity 15 | 5 15 15 Average Capacity 6 | 5 8 15 Most Carried 10 | 5 10 8 Average Carried 5 | 4 5 7 Final Capacity 15 | 5 15 15 Final Carried 8 | 5 8 6 Class Distribution -------------------- 79% | Mutant 20% | Scavenger-Mutant Dominant Class ---------------- Scavenger-Mutant | -10/Materials Mutant | -10/Mines Resources | -11 -10 -10 ----------- Run | Yrd Mat Min Matter Collected 588 | 294 294 . Remotely . | . . . Salvage Created 540 | 63 361 116 Parts 40 | 2 31 7 Haulers Intercepted . | . . . Recyclers Shooed . | . . . Parts Field Recycled . | . . . Retrieved Matter . | . . . Parts Self-Destructed . | . . . Prevented . | . . . Kills | -11 -10 -10 ------- Run | Yrd Mat Min Combat Hostiles Destroyed 16 | 1 13 2 Guns 7 | 1 6 . Cannons 9 | . 7 2 Classes Destroyed 4 | 2 1 1 Worker 2 | 1 1 . Swarmer 6 | . 6 . Grunt 8 | 1 7 . Sentry 2 | . . 2 Best Kill Streak 4 | 1 4 2 Combat Bots Only 4 | 1 4 2 Max Kills in Single Turn 2 | 1 2 1 Gunslinging 1 | . 1 . Exploded . | . . . Melee . | . . . Uniques/NPCs Destroyed . | . . . Combat | -11 -10 -10 -------- Run | Yrd Mat Min Hostile Shots Fired 122 | 7 89 26 Missed 29 | 2 24 3 Damage Taken 1084 | 86 664 334 Core 251 | 23 170 58 Absorbed by Shields . | . . . Core Remaining (%) 90 | 90 . . Volleys Fired 42 | 6 32 4 Largest 2 | 2 2 2 Hottest 136 | 40 136 136 Shots Fired 84 | 12 64 8 Gun 44 | 12 32 . Cannon 40 | . 32 8 Launcher . | . . . Special . | . . . Kinetic 28 | 12 16 . Thermal 56 | . 48 8 Explosive . | . . . Electromagnetic . | . . . Robot Hit Streak 6 | 4 6 6 Robot Miss Streak 3 | 2 3 2 Penetration Max . | . . . Secondary Targets 1 | . 1 . Max Gunslinging Chain 1 | . 1 . Shots Hit Robots 47 | 7 37 3 Core Hits 24 | 4 18 2 Critical Kills . | . . . Critical Parts Destroyed . | . . . Critical Strikes . | . . . Melee Attacks . | . . . Impact . | . . . Slashing . | . . . Piercing . | . . . Sneak Attacks . | . . . Combat Hostiles . | . . . Follow-up Attacks . | . . . Damage Inflicted 831 | 99 630 102 Guns 334 | 78 256 . Cannons 476 | . 374 102 Explosions . | . . . Melee . | . . . Ramming 21 | 21 . . Kinetic 224 | 78 146 . Thermal 586 | . 484 102 Explosive . | . . . Electromagnetic . | . . . Impact . | . . . Slashing . | . . . Piercing . | . . . Highest Corruption 3 | . 3 3 Average Corruption 2 | . 2 3 Corruption Purged . | . . . Corruption Blocked . | . . . Effects 4 | . 2 2 Message Errors 2 | . 2 . Matter Fused 2 | . . 2 Overload Shots . | . . . Overflow Damage 1 | . 1 . Projectiles 1 | . 1 . Explosions . | . . . Melee . | . . . Knockbacks . | . . . Impact . | . . . Kinetic . | . . . Secondary . | . . . Self-Inflicted Damage 10 | 10 . . Shots . | . . . Rammed 2 | 2 . . Targets Rammed 2 | 2 . . Kicked . | . . . Crushed . | . . . Highest Temperature 312 | 12 312 276 Average Temperature 95 | 9 93 145 Received Heat Transfer 420 | 30 201 189 Siege Activations . | . . . Robots Corrupted . | . . . Combat Hostiles . | . . . Parts Fried . | . . . Impact Corruptions . | . . . Robots Melted . | . . . Combat Hostiles . | . . . Parts Melted 1 | . 1 . Heat Transferred 1138 | . 953 185 Parts Sabotaged . | . . . Parts Stolen . | . . . Parts Stripped . | . . . Power Chain Reactions . | . . . Alert | -11 -10 -10 ------- Run | Yrd Mat Min Peak Influence 177 | 25 177 71 Initial 16 | . . 16 Average 9 | 1 24 24 Maximum Alert Level . | . . . Low Security (%) 100 | 100 100 100 Level 1 . | . . . Level 2 . | . . . Level 3 . | . . . Level 4 . | . . . Level 5 . | . . . High Security . | . . . Max Security . | . . . Squads Dispatched 2 | . 2 . Investigation 2 | . 2 . Extermination . | . . . Reinforcement . | . . . Assault . | . . . Garrison . | . . . Intercept . | . . . Searches Triggered . | . . . Construction Impeded . | . . . Haulers Reinforced . | . . . Active Scanning Responses . | . . . Cargo Convoy Interrupts . | . . . Stealth | -11 -10 -10 --------- Run | Yrd Mat Min Distress Signals 1 | . 1 . Communications Jammed . | . . . Distress Signals . | . . . Times Spotted 29 | 1 24 4 Peak Tracking Total 4 | 1 4 4 Tactical Retreats 2 | . 2 . Traps | -11 -10 -10 ------- Run | Yrd Mat Min Traps Triggered 4 | . 4 . Indirectly . | . . . Trap Hack Attempts . | . . . Triggered . | . . . Disarmed . | . . . Reprogrammed . | . . . Reused . | . . . Traps Extracted . | . . . Installed . | . . . Triggered . | . . . Machines | -11 -10 -10 ---------- Run | Yrd Mat Min Machines Disabled 1 | . 1 . Max in Single Turn 1 | . 1 . Machines Repaired . | . . . Machines Dismantled . | . . . Machines Sabotaged . | . . . Overloaded Fab Kills . | . . . Hacking | -11 -10 -10 --------- Run | Yrd Mat Min Machines Accessed 5 | . 5 . Terminals 4 | . 4 . Fabricators . | . . . Repair Stations 1 | . 1 . Recycling Units . | . . . Scanalyzers . | . . . Garrison Access . | . . . Total Hacks 19 | . 19 . Successful 10 | . 10 . Failed 9 | . 9 . Catastrophic 2 | . 2 . Database Lockouts . | . . . Manual 6 | . 6 . Terminals 15 | . 15 . Fabricators . | . . . Repair Stations 4 | . 4 . Recycling Units . | . . . Scanalyzers . | . . . Garrison Access . | . . . Terminal Hacks 9 | . 9 . Record 2 | . 2 . Prototype ID Bank 1 | . 1 . Branch Access Points 1 | . 1 . Alert Level 1 | . 1 . Locate Traps 1 | . 1 . Dispatch Records 1 | . 1 . Transport Status 1 | . 1 . Zone Layout 1 | . 1 . Fabricator Hacks . | . . . Repair Station Hacks 1 | . 1 . Scan Component 1 | . 1 . Recycling Unit Hacks . | . . . Scanalyzer . | . . . Garrison Access Hacks . | . . . Unauthorized Hacks . | . . . Terminals . | . . . Fabricators . | . . . Repair Stations . | . . . Recycling Units . | . . . Scanalyzers . | . . . Garrison Access . | . . . Data Cores Recovered . | . . . Used . | . . . Hacking Detections 6 | . 6 . Full Trace Events 3 | . 3 . Feedback Events . | . . . Feedback Blocked . | . . . Robot Schematics Acquired . | . . . Robots Built . | . . . Authchips . | . . . Time . | . . . Total Robot Build Rating . | . . . Part Schematics Acquired . | . . . Parts Built . | . . . Authchips . | . . . Time . | . . . Total Part Build Rating . | . . . Parts Repaired . | . . . Time . | . . . Parts Recycled . | . . . Recycled Matter . | . . . Retrieved Matter . | . . . Retrieved Components . | . . . Parts Scanalyzed . | . . . Part Schematics Acquired . | . . . Parts Damaged . | . . . Bothacking | -11 -10 -10 ------------ Run | Yrd Mat Min Used RIF Installer . | . . . Robots Hacked . | . . . Non-combat . | . . . Combat . | . . . Robot Hacks Applied . | . . . Relay Couplers Released . | . . . Fabnet Peak Effective % . | . . . Robots Rewired . | . . . Allies Hacked . | . . . Hacks Repelled . | . . . Allies | -11 -10 -10 -------- Run | Yrd Mat Min Total Allies . | . . . Largest Group . | . . . Highest-Rated Group . | . . . Highest-Rated Ally . | . . . Total Orders . | . . . Ally Attacks . | . . . Total Damage . | . . . Kills . | . . . Allies Corrupted . | . . . Allies Melted . | . . . Intel | -11 -10 -10 ------- Run | Yrd Mat Min Robot Analysis Total . | . . . Derelict Logs Recovered . | . . . Drone Launches . | . . . Drone Recoveries . | . . . Exploration | -11 -10 -10 ------------- Run | Yrd Mat Min Turns Passed 6494 | 4198 2223 73 Spaces Moved 2497 | 1349 1116 32 Core 47 | 47 . . Treads . | . . . Legs 984 | . 952 32 Wheels 1466 | 1302 164 . Hover . | . . . Flight . | . . . Fastest Speed 50 | 50 80 190 Average Speed 108 | 78 140 190 Slowest Speed 190 | 80 190 190 Overloaded Moves . | . . . Propulsion Burnouts . | . . . Robots Hopped . | . . . Cave-ins Triggered . | . . . Exploration Rate (%) 54 | 67 86 10 Regions Visited 2 Branch Regions 1 Pre-discovered Areas . | . . . Known Exits Taken 1 | . 1 . Unknown Exits Taken 1 | 1 . . Scrap Searched . | . . . Spaces Dug . | . . . Terrain Destroyed . | . . . Melee . | . . . Projectile . | . . . AOE . | . . . Terrain Rammed . | . . . Walls Destroyed . | . . . Machines Disabled . | . . . Actions | -11 -10 -10 --------- Run | Yrd Mat Min Total 6218 | 4468 1711 39 Wait 3605 | 3098 507 . Move 2495 | 1348 1115 32 Hop . | . . . Pick Up 15 | 6 9 . Fast Attach 13 | 4 9 . Attach 8 | 2 4 2 Detach 7 | . 7 . Swap 9 | 1 8 . Drop 22 | 1 20 1 Fire 42 | 6 32 4 Melee . | . . . Ram 2 | 2 . . Kick . | . . . Crush . | . . . Escape Stasis . | . . . Rewire . | . . . Trap . | . . . Miscellaneous . | . . . Route ------- -11/Scrapyard -10/Materials (discovered 3 exits: [*Mat x2] / *Min) -10/Mines History --------- Turn | Location | Event 2 | -11/Scrapyard | Met Revision 17 159 | -11/Scrapyard | Discovered new exit (range 8) 4199 | -11/Scrapyard | Entered Materials 4200 | -10/Materials | Build established: Mutant 5022 | -10/Materials | Build established: Scavenger-Mutant 5312 | -10/Materials | Identified exit to Mines 5464 | -10/Materials | Discovered new exit (range 10) 5707 | -10/Materials | Discovered new exit (range 8) 5717 | -10/Materials | Core integrity fell below 50% 6328 | -10/Materials | Build established: Mutant 6422 | -10/Materials | Entered Mines 6423 | -10/Mines | Assembled infested the area 6444 | -10/Mines | Met a Derelict bent on vengeance 6472 | -10/Mines | Core integrity fell below 20% 6495 | -10/Mines | Destroyed by G-47 Trooper with Particle Gun Last Messages --------------- Rating: 1 Time: 13 Dropped Broken Ion Engine. Acquired Broken Ion Engine. Dropped Broken Ion Engine. Connecting with Repair Station... LOCATION=MINES GOAL=ESCAPE Something is scanning the area. ALERT: Infestation in the mines, dispatching Demolisher response squad. K-01 Serf collects debris. System corrupted: Matter fused (-7). Critical hit (Burn: +37). System corrupted: Matter fused (-9). Y-45 Defender destroyed. Particle Cannon destroyed. Aluminum Leg destroyed. Dropped Terrain Scanner. Aluminum Leg destroyed. [Achievement: First Step to Greatness] Map ----- +----------------------------------------------------+ | | | | | | | | | | | | | | | | | | | | | | | | | | | | | | | | | | | ???????????#????????????????????????????????????? | | ????????????????????????????????????????????????? | | ?????????????????????????????????#########??????? | | ???????????????????????#####?????# #??????? | | ????????????????###?#### ##????# #??????? | | ?????????#?????##" ## #????# #??????? | | ???????????????#"" # # #????# #??????? | | ???????????????#!! / ## #?????# #??????? | | ???????????????#!! / ##@ #?????# """" #??????? | | ???????????????#"" # #[ #???#?# """" #??????? | | ???????????????##" ## [g= ##????# """" #??????? | | ????????????????##### !*! ##???# #??????? | | ??????????????????## g #?#?## #######?????? | | ??????????????????# ###### #???????????? | | ??????????? ?????# k #???????????? | | ????????????????# #########???????????? | | ???????????? ???# ### ###??#????????????#???? | | ?????????????#??## #??####?????????????????????? | | ?????????????????# #????????? ? ???????????????? | | ?????????????????# ?????#???????????????????????? | | ?????????????????# ?????????????????????????????? | | ?????????????????# ?????????????????????????????? | | ?????????????????#?#??#????????? ???????????????? | | ????????????????????????????????????????????????? | | ?????????????????????????????? ?????????????????? | | ????????????????????????????????????????????????? | | ??????????????????????#????????????? ???????????? | | ????????????????????????????????????????????????? | | ????????????????????????????????????????????????? | | ????????????????????????????????????????????????? | | ????????????????????????????????????????????????? | | ????????????????????????????????????????????????? | | ????????????????????????????????????????????????? | +----------------------------------------------------+ Best States ------------- Heat Dissipation 35 Energy Generation 10 Energy Capacity 250 Matter Stores 381 Matter Capacity 500 Sight Range 16 Terrain Scan Range 14 Terrain Scan Density 10 Armor Coverage 150 Evasion (%) 55 Item Schematics ----------------- None Robot Schematics ------------------ None Fabricated ------------ Nothing Alien Tech Used ----------------- None Achievements -------------- First Step to Greatness One Hack Too Far Challenges ------------ None Game ------ Seed RecoilChromaticCarapace Manual? 0 Play Time 00:57:05 Cumulative 0.9 hours Start 2024.07.05 @ 22:02:04 End 2024.07.05 @ 23:05:13 Sessions 1 Manual Loads 0 Difficulty Rogue Special Mode None Game No. 1 Rogue 1 Adventurer 0 Explorer 0 Win Type - Total 0 Types 0/0/0/0/0/0/0/0/0 Lore% 0 Gallery% 1 Achievement% 0 Wizard Run 0 Options --------- Layout 0 ASCII 0 Keyboard 1 Movement Numpad Keybinds 0 Fullscreen 2 Font 24/Tamsyn Map View 183x50 Zoom Use 0% Tactical HUD 0 Map Filters NONE Filters NONE Steam 1 RUN: 055a4921-304f-45a4-8501-d8d9960a9a04